[Event "Titled Tuesday Blitz March 22 Early 2022"]
[White "Winkels, Marcel"]
[Black "Bintang, Rasyid A. Hidayat"]
[WhiteFideId "1003887"]
[BlackFideId "7105355"]
[WhiteElo "1900"]
[BlackElo "2381"]
[Result "1/2-1/2"]
[Round "08"]
[TimeControl "180+1"]
[Date "2022.03.22"]
[WhiteClock "0:00:27"]
[BlackClock "0:00:07"]

1. e4 {[%clk 0:03:00]}  e5 {[%clk 0:02:59]} 2. Nf3 {[%clk 0:02:59]}  Nc6 {[%clk 0:03:00]} 3. Bc4 {[%clk 0:02:58]}  Nf6 {[%clk 0:03:00]} 4. Ng5 {[%clk 0:02:58]}  d5 {[%clk 0:02:59]} 5. exd5 {[%clk 0:02:57]}  Na5 {[%clk 0:02:59]} 6. Bb5+ {[%clk 0:02:57]}  c6 {[%clk 0:03:00]} 7. dxc6 {[%clk 0:02:57]}  bxc6 {[%clk 0:03:01]} 8. Bd3 {[%clk 0:02:57]}  Nd5 {[%clk 0:02:59]} 9. Ne4 {[%clk 0:02:56]}  Nf4 {[%clk 0:02:49]} 10. O-O {[%clk 0:02:53]}  Nxd3 {[%clk 0:02:49]} 11. cxd3 {[%clk 0:02:49]}  f5 {[%clk 0:02:46]} 12. Ng3 {[%clk 0:02:45]}  Be7 {[%clk 0:02:44]} 13. Qe2 {[%clk 0:02:43]}  Bf6 {[%clk 0:02:30]} 14. Nc3 {[%clk 0:02:31]}  O-O {[%clk 0:02:28]} 15. b3 {[%clk 0:02:28]}  Ba6 {[%clk 0:02:27]} 16. Qf3 {[%clk 0:02:12]}  g6 {[%clk 0:02:12]} 17. Re1 {[%clk 0:01:59]}  Qxd3 {[%clk 0:02:08]} 18. Qxd3 {[%clk 0:01:57]}  Bxd3 {[%clk 0:02:09]} 19. Ba3 {[%clk 0:01:56]}  Rfe8 {[%clk 0:02:08]} 20. Rac1 {[%clk 0:01:50]}  Rac8 {[%clk 0:02:07]} 21. Na4 {[%clk 0:01:49]}  Nb7 {[%clk 0:02:03]} 22. Nc5 {[%clk 0:01:44]}  Nxc5 {[%clk 0:02:03]} 23. Bxc5 {[%clk 0:01:43]}  a6 {[%clk 0:02:03]} 24. Rc3 {[%clk 0:01:39]}  e4 {[%clk 0:02:02]} 25. Ne2 {[%clk 0:01:36]}  Bxe2 {[%clk 0:02:00]} 26. Rxe2 {[%clk 0:01:36]}  Bxc3 {[%clk 0:02:01]} 27. dxc3 {[%clk 0:01:35]}  Re5 {[%clk 0:02:01]} 28. Bd4 {[%clk 0:01:34]}  Rd5 {[%clk 0:02:01]} 29. b4 {[%clk 0:01:32]}  Rcd8 {[%clk 0:01:57]} 30. Rd2 {[%clk 0:01:29]}  f4 {[%clk 0:01:50]} 31. Kf1 {[%clk 0:01:28]}  e3 {[%clk 0:01:50]} 32. fxe3 {[%clk 0:01:28]}  fxe3 {[%clk 0:01:50]} 33. Rd3 {[%clk 0:01:28]}  Rf8+ {[%clk 0:01:32]} 34. Ke1 {[%clk 0:01:22]}  Rf2 {[%clk 0:01:28]} 35. Rxe3 {[%clk 0:01:21]}  Rxa2 {[%clk 0:01:19]} 36. Re6 {[%clk 0:01:18]}  a5 {[%clk 0:01:03]} 37. bxa5 {[%clk 0:01:15]}  c5 {[%clk 0:00:56]} 38. Be3 {[%clk 0:01:07]}  Rxa5 {[%clk 0:00:51]} 39. Rc6 {[%clk 0:01:05]}  Re5 {[%clk 0:00:46]} 40. Kf2 {[%clk 0:01:04]}  Ra2+ {[%clk 0:00:45]} 41. Kf3 {[%clk 0:01:03]}  Rf5+ {[%clk 0:00:38]} 42. Kg3 {[%clk 0:00:59]}  Ra3 {[%clk 0:00:26]} 43. Bd2 {[%clk 0:00:48]}  Rd5 {[%clk 0:00:22]} 44. Be1 {[%clk 0:00:43]}  Rd1 {[%clk 0:00:16]} 45. Bf2 {[%clk 0:00:43]}  Rxc3+ {[%clk 0:00:16]} 46. Kg4 {[%clk 0:00:38]}  c4 {[%clk 0:00:09]} 47. Rc8+ {[%clk 0:00:37]}  Kf7 {[%clk 0:00:08]} 48. Kg5 {[%clk 0:00:37]}  Rd5+ {[%clk 0:00:07]} 49. Kg4 {[%clk 0:00:36]}  h5+ {[%clk 0:00:07]} 50. Kf4 {[%clk 0:00:35]}  g5+ {[%clk 0:00:05]} 51. Ke4 {[%clk 0:00:34]}  Rdd3 {[%clk 0:00:03]} 52. Bd4 {[%clk 0:00:32]}  Rxd4+ {[%clk 0:00:01]} 53. Kxd4 {[%clk 0:00:32]}  Rc2 {[%clk 0:00:02]} 54. g3 {[%clk 0:00:30]}  h4 {[%clk 0:00:01]} 55. gxh4 {[%clk 0:00:29]}  gxh4 {[%clk 0:00:02]} 56. Rxc4 {[%clk 0:00:28]}  Rxc4+ {[%clk 0:00:02]} 57. Kxc4 {[%clk 0:00:28]}  Kf6 {[%clk 0:00:03]} 58. Kd4 {[%clk 0:00:28]}  Kf5 {[%clk 0:00:03]} 59. Ke3 {[%clk 0:00:29]}  Kg4 {[%clk 0:00:04]} 60. Kf2 {[%clk 0:00:29]}  Kh3 {[%clk 0:00:05]} 61. Kg1 {[%clk 0:00:30]}  Kg4 {[%clk 0:00:05]} 62. Kg2 {[%clk 0:00:30]}  h3+ {[%clk 0:00:05]} 63. Kf2 {[%clk 0:00:27]}  Kf4 {[%clk 0:00:06]} 64. Kg1 {[%clk 0:00:27]}  Kf3 {[%clk 0:00:07]} 65. Kh1 {[%clk 0:00:27]}  Kf2 {[%clk 0:00:07]} 1/2-1/2


[Site "https://www.chess.com"]

[Event "Titled Tuesday Blitz March 22 Early 2022"]
[White "Yeletsky, Ivan"]
[Black "Zhigalko, Sergei"]
[WhiteFideId "24180327"]
[BlackFideId "13502956"]
[WhiteElo "2303"]
[BlackElo "2662"]
[Result "1/2-1/2"]
[Round "08"]
[TimeControl "180+1"]
[Date "2022.03.22"]
[WhiteClock "0:00:09"]
[BlackClock "0:00:02"]

1. e4 {[%clk 0:03:00]}  c5 {[%clk 0:03:00]} 2. Nf3 {[%clk 0:03:00]}  Nc6 {[%clk 0:03:00]} 3. Bb5 {[%clk 0:02:59]}  Nf6 {[%clk 0:03:00]} 4. Bxc6 {[%clk 0:02:57]}  dxc6 {[%clk 0:03:00]} 5. d3 {[%clk 0:02:58]}  Bg4 {[%clk 0:02:59]} 6. h3 {[%clk 0:02:59]}  Bh5 {[%clk 0:02:59]} 7. Qe2 {[%clk 0:02:58]}  Qc7 {[%clk 0:02:54]} 8. g4 {[%clk 0:02:45]}  Bg6 {[%clk 0:02:51]} 9. b3 {[%clk 0:02:43]}  e5 {[%clk 0:02:44]} 10. Nbd2 {[%clk 0:02:38]}  Nd7 {[%clk 0:02:40]} 11. a4 {[%clk 0:02:23]}  Be7 {[%clk 0:02:35]} 12. Nc4 {[%clk 0:02:22]}  f6 {[%clk 0:02:31]} 13. Nh4 {[%clk 0:02:08]}  Nf8 {[%clk 0:02:30]} 14. Nf5 {[%clk 0:02:00]}  Ne6 {[%clk 0:02:30]} 15. a5 {[%clk 0:01:51]}  O-O-O {[%clk 0:02:20]} 16. c3 {[%clk 0:01:20]}  Rhe8 {[%clk 0:02:18]} 17. Be3 {[%clk 0:01:19]}  Bf8 {[%clk 0:02:12]} 18. b4 {[%clk 0:00:53]}  Nf4 {[%clk 0:02:02]} 19. Bxf4 {[%clk 0:00:53]}  exf4 {[%clk 0:02:03]} 20. bxc5 {[%clk 0:00:49]}  Bxc5 {[%clk 0:02:03]} 21. d4 {[%clk 0:00:47]}  Bf8 {[%clk 0:01:58]} 22. f3 {[%clk 0:00:37]}  Bf7 {[%clk 0:01:56]} 23. Kf1 {[%clk 0:00:35]}  g6 {[%clk 0:01:44]} 24. Nh4 {[%clk 0:00:34]}  c5 {[%clk 0:01:45]} 25. d5 {[%clk 0:00:22]}  Bxd5 {[%clk 0:01:38]} 26. Kg1 {[%clk 0:00:21]}  Bf7 {[%clk 0:01:19]} 27. Ng2 {[%clk 0:00:21]}  Qc6 {[%clk 0:01:11]} 28. a6 {[%clk 0:00:20]}  b6 {[%clk 0:00:49]} 29. Kh2 {[%clk 0:00:19]}  h5 {[%clk 0:00:36]} 30. gxh5 {[%clk 0:00:16]}  g5 {[%clk 0:00:36]} 31. Rhb1 {[%clk 0:00:15]}  Kc7 {[%clk 0:00:33]} 32. Na3 {[%clk 0:00:13]}  Bxh5 {[%clk 0:00:26]} 33. Nb5+ {[%clk 0:00:14]}  Kb8 {[%clk 0:00:27]} 34. c4 {[%clk 0:00:14]}  Bf7 {[%clk 0:00:21]} 35. Rd1 {[%clk 0:00:14]}  Be6 {[%clk 0:00:20]} 36. Qc2 {[%clk 0:00:10]}  Be7 {[%clk 0:00:20]} 37. Rd5 {[%clk 0:00:09]}  Rh8 {[%clk 0:00:19]} 38. Rad1 {[%clk 0:00:07]}  Rxh3+ {[%clk 0:00:15]} 39. Kg1 {[%clk 0:00:07]}  Rhh8 {[%clk 0:00:12]} 40. Rxd8+ {[%clk 0:00:02]}  Rxd8 {[%clk 0:00:13]} 41. Rxd8+ {[%clk 0:00:01]}  Bxd8 {[%clk 0:00:14]} 42. Qd3 {[%clk 0:00:02]}  Be7 {[%clk 0:00:14]} 43. Ne1 {[%clk 0:00:01]}  Qd7 {[%clk 0:00:14]} 44. Qc2 {[%clk 0:00:02]}  Qc8 {[%clk 0:00:09]} 45. e5 {[%clk 0:00:02]}  Bf5 {[%clk 0:00:04]} 46. Nd3 {[%clk 0:00:02]}  Qd7 {[%clk 0:00:04]} 47. exf6 {[%clk 0:00:02]}  Bxf6 {[%clk 0:00:05]} 48. Qh2 {[%clk 0:00:02]}  Bxd3 {[%clk 0:00:04]} 49. Qh6 {[%clk 0:00:03]}  Bd4+ {[%clk 0:00:04]} 50. Kh2 {[%clk 0:00:03]}  Kc8 {[%clk 0:00:01]} 51. Qf8+ {[%clk 0:00:02]}  Qd8 {[%clk 0:00:02]} 52. Qf7 {[%clk 0:00:02]}  Qd7 {[%clk 0:00:02]} 53. Nxa7+ {[%clk 0:00:02]}  Kd8 {[%clk 0:00:02]} 54. Qf8+ {[%clk 0:00:02]}  Kc7 {[%clk 0:00:02]} 55. Nc6 {[%clk 0:00:03]}  Kxc6 {[%clk 0:00:02]} 56. Qa8+ {[%clk 0:00:02]}  Kd6 {[%clk 0:00:02]} 57. a7 {[%clk 0:00:03]}  Qh7+ {[%clk 0:00:02]} 58. Kg2 {[%clk 0:00:04]}  Bf1+ {[%clk 0:00:02]} 59. Kxf1 {[%clk 0:00:04]}  Qh1+ {[%clk 0:00:03]} 60. Ke2 {[%clk 0:00:05]}  Qg2+ {[%clk 0:00:03]} 61. Kd3 {[%clk 0:00:06]}  Qf1+ {[%clk 0:00:04]} 62. Ke4 {[%clk 0:00:07]}  Qe2+ {[%clk 0:00:04]} 63. Kf5 {[%clk 0:00:07]}  Qe6+ {[%clk 0:00:02]} 64. Kxg5 {[%clk 0:00:07]}  Bf6+ {[%clk 0:00:02]} 65. Kxf4 {[%clk 0:00:06]}  Qe5+ {[%clk 0:00:02]} 66. Kg4 {[%clk 0:00:07]}  Qg5+ {[%clk 0:00:02]} 67. Kh3 {[%clk 0:00:07]}  Qh4+ {[%clk 0:00:01]} 68. Kg2 {[%clk 0:00:08]}  Qg5+ {[%clk 0:00:02]} 69. Kh3 {[%clk 0:00:07]}  Qh4+ {[%clk 0:00:02]} 70. Kg2 {[%clk 0:00:08]}  Qg5+ {[%clk 0:00:02]} 71. Kf1 {[%clk 0:00:08]}  Qc1+ {[%clk 0:00:02]} 72. Kg2 {[%clk 0:00:08]}  Qd2+ {[%clk 0:00:02]} 73. Kh3 {[%clk 0:00:08]}  Qh6+ {[%clk 0:00:02]} 74. Kg2 {[%clk 0:00:08]}  Qd2+ {[%clk 0:00:02]} 75. Kh3 {[%clk 0:00:08]}  Qh6+ {[%clk 0:00:02]} 76. Kg2 {[%clk 0:00:09]}  Qd2+ {[%clk 0:00:02]} 1/2-1/2


[Site "https://www.chess.com"]

[Event "Titled Tuesday Blitz March 22 Early 2022"]
[White "volunteers1998"]
[Black "Manukian, Artak"]
[BlackFideId "13301373"]
[WhiteElo "2242"]
[BlackElo "2430"]
[Result "1/2-1/2"]
[Round "08"]
[TimeControl "180+1"]
[Date "2022.03.22"]
[WhiteClock "0:00:07"]
[BlackClock "0:00:27"]

1. e4 {[%clk 0:02:59]}  c6 {[%clk 0:02:58]} 2. d4 {[%clk 0:02:58]}  d5 {[%clk 0:02:58]} 3. e5 {[%clk 0:02:58]}  Bf5 {[%clk 0:02:57]} 4. Nc3 {[%clk 0:02:58]}  e6 {[%clk 0:02:56]} 5. g4 {[%clk 0:02:56]}  Bg6 {[%clk 0:02:56]} 6. Nge2 {[%clk 0:02:55]}  c5 {[%clk 0:02:55]} 7. h4 {[%clk 0:02:53]}  cxd4 {[%clk 0:02:46]} 8. Nxd4 {[%clk 0:02:50]}  h5 {[%clk 0:02:45]} 9. Bb5+ {[%clk 0:02:42]}  Nd7 {[%clk 0:02:43]} 10. g5 {[%clk 0:02:39]}  Ne7 {[%clk 0:02:38]} 11. Be3 {[%clk 0:02:35]}  a6 {[%clk 0:02:34]} 12. Bxd7+ {[%clk 0:02:27]}  Qxd7 {[%clk 0:02:34]} 13. f4 {[%clk 0:02:21]}  Nf5 {[%clk 0:02:15]} 14. Nxf5 {[%clk 0:02:19]}  Bxf5 {[%clk 0:02:16]} 15. Qd2 {[%clk 0:02:11]}  Rc8 {[%clk 0:01:56]} 16. O-O {[%clk 0:02:04]}  Bb4 {[%clk 0:01:45]} 17. a3 {[%clk 0:01:57]}  Bxc3 {[%clk 0:01:39]} 18. bxc3 {[%clk 0:01:58]}  O-O {[%clk 0:01:38]} 19. Rab1 {[%clk 0:01:54]}  b5 {[%clk 0:01:36]} 20. Bd4 {[%clk 0:01:44]}  Rc4 {[%clk 0:01:35]} 21. Qf2 {[%clk 0:01:33]}  Rfc8 {[%clk 0:01:30]} 22. Rb4 {[%clk 0:01:28]}  a5 {[%clk 0:01:30]} 23. Rxc4 {[%clk 0:01:24]}  Rxc4 {[%clk 0:01:31]} 24. Rb1 {[%clk 0:01:20]}  Qc6 {[%clk 0:01:29]} 25. Kh2 {[%clk 0:01:12]}  Kh7 {[%clk 0:01:27]} 26. Kg3 {[%clk 0:01:02]}  Kg6 {[%clk 0:01:19]} 27. Kh2 {[%clk 0:00:58]}  Qc7 {[%clk 0:01:10]} 28. Rxb5 {[%clk 0:00:55]}  Rxc3 {[%clk 0:01:09]} 29. Bxc3 {[%clk 0:00:52]}  Qxc3 {[%clk 0:01:10]} 30. Rb3 {[%clk 0:00:48]}  Qc4 {[%clk 0:01:08]} 31. Rb2 {[%clk 0:00:43]}  d4 {[%clk 0:00:58]} 32. Qd2 {[%clk 0:00:40]}  Qd5 {[%clk 0:00:50]} 33. a4 {[%clk 0:00:35]}  Qc4 {[%clk 0:00:41]} 34. Rb5 {[%clk 0:00:29]}  Qxa4 {[%clk 0:00:40]} 35. Rxa5 {[%clk 0:00:27]}  Qc4 {[%clk 0:00:37]} 36. Kg3 {[%clk 0:00:23]}  Bxc2 {[%clk 0:00:35]} 37. Kf2 {[%clk 0:00:20]}  d3 {[%clk 0:00:33]} 38. Ra1 {[%clk 0:00:18]}  Qd4+ {[%clk 0:00:33]} 39. Qe3 {[%clk 0:00:16]}  Qxa1 {[%clk 0:00:33]} 40. Qe4+ {[%clk 0:00:14]}  f5 {[%clk 0:00:31]} 41. exf6+ {[%clk 0:00:12]}  Kf7 {[%clk 0:00:31]} 42. Qb7+ {[%clk 0:00:09]}  Kg6 {[%clk 0:00:28]} 43. Qe4+ {[%clk 0:00:07]}  Kf7 {[%clk 0:00:27]} 44. Qb7+ {[%clk 0:00:07]}  Kg6 {[%clk 0:00:27]} 45. Qe4+ {[%clk 0:00:07]} 1/2-1/2


[Site "https://www.chess.com"]

[Event "Titled Tuesday Blitz March 22 Early 2022"]
[White "Alinasab, Mobina"]
[Black "Sanchez Alvares, Kelvin Antonio"]
[WhiteFideId "12528897"]
[BlackFideId "3906680"]
[WhiteElo "2479"]
[BlackElo "2597"]
[Result "0-1"]
[Round "09"]
[TimeControl "180+1"]
[Date "2022.03.22"]
[WhiteClock "0:00:02"]
[BlackClock "0:01:06"]

1. e4 {[%clk 0:03:00]}  e5 {[%clk 0:02:53]} 2. Nf3 {[%clk 0:02:59]}  Nc6 {[%clk 0:02:53]} 3. Bb5 {[%clk 0:02:59]}  a6 {[%clk 0:02:53]} 4. Ba4 {[%clk 0:02:59]}  b5 {[%clk 0:02:52]} 5. Bb3 {[%clk 0:02:58]}  Nf6 {[%clk 0:02:53]} 6. O-O {[%clk 0:02:58]}  Nxe4 {[%clk 0:02:53]} 7. Re1 {[%clk 0:02:58]}  Nd6 {[%clk 0:02:52]} 8. Nxe5 {[%clk 0:02:57]}  Be7 {[%clk 0:02:52]} 9. Bd5 {[%clk 0:02:45]}  Bb7 {[%clk 0:02:51]} 10. Bxc6 {[%clk 0:02:09]}  dxc6 {[%clk 0:02:36]} 11. Qf3 {[%clk 0:02:08]}  c5 {[%clk 0:02:36]} 12. Nc6 {[%clk 0:01:43]}  Qd7 {[%clk 0:02:36]} 13. d4 {[%clk 0:00:21]}  Bxc6 {[%clk 0:02:32]} 14. d5 {[%clk 0:00:19]}  Bb7 {[%clk 0:02:31]} 15. Bg5 {[%clk 0:00:14]}  f6 {[%clk 0:02:30]} 16. Qh5+ {[%clk 0:00:07]}  Nf7 {[%clk 0:02:27]} 17. Bf4 {[%clk 0:00:05]}  Qxd5 {[%clk 0:02:26]} 18. Qg4 {[%clk 0:00:03]}  g6 {[%clk 0:02:11]} 19. Nc3 {[%clk 0:00:03]}  Qd7 {[%clk 0:02:08]} 20. Qe2 {[%clk 0:00:03]}  Nd6 {[%clk 0:01:48]} 21. Rad1 {[%clk 0:00:03]}  Kf7 {[%clk 0:01:47]} 22. Nd5 {[%clk 0:00:03]}  Rhe8 {[%clk 0:01:39]} 23. Nxe7 {[%clk 0:00:03]}  Rxe7 {[%clk 0:01:37]} 24. Qd3 {[%clk 0:00:03]}  Rxe1+ {[%clk 0:01:34]} 25. Rxe1 {[%clk 0:00:04]}  Re8 {[%clk 0:01:33]} 26. Rd1 {[%clk 0:00:04]}  Qc6 {[%clk 0:01:29]} 27. f3 {[%clk 0:00:04]}  c4 {[%clk 0:01:26]} 28. Qd2 {[%clk 0:00:03]}  Qc5+ {[%clk 0:01:22]} 29. Kh1 {[%clk 0:00:02]}  g5 {[%clk 0:01:22]} 30. Bg3 {[%clk 0:00:02]}  Nf5 {[%clk 0:01:20]} 31. Bf2 {[%clk 0:00:02]}  Qd6 {[%clk 0:01:14]} 32. Qc1 {[%clk 0:00:02]}  Qf4 {[%clk 0:01:10]} 33. Qb1 {[%clk 0:00:02]}  Bxf3 {[%clk 0:01:07]} 34. gxf3 {[%clk 0:00:01]}  Qxf3+ {[%clk 0:01:08]} 35. Kg1 {[%clk 0:00:02]}  Re2 {[%clk 0:01:07]} 36. Rf1 {[%clk 0:00:03]}  Ne3 {[%clk 0:01:06]} 37. Qe1 {[%clk 0:00:02]} 0-1


[Site "https://www.chess.com"]

[Event "Titled Tuesday Blitz March 22 Early 2022"]
[White "Araujo Filho, Luiz Antonio Coel"]
[Black "Koellner, Ruben Gideon"]
[WhiteFideId "2130661"]
[BlackFideId "12993093"]
[WhiteElo "2261"]
[BlackElo "2512"]
[Result "0-1"]
[Round "09"]
[TimeControl "180+1"]
[Date "2022.03.22"]
[WhiteClock "0:00:02"]
[BlackClock "0:01:32"]

1. d4 {[%clk 0:02:39]}  d6 {[%clk 0:03:00]} 2. Nf3 {[%clk 0:02:39]}  Nf6 {[%clk 0:02:56]} 3. c4 {[%clk 0:02:39]}  g6 {[%clk 0:02:56]} 4. Nc3 {[%clk 0:02:40]}  Bf5 {[%clk 0:02:57]} 5. Qb3 {[%clk 0:02:30]}  b6 {[%clk 0:02:56]} 6. e3 {[%clk 0:02:30]}  Bg7 {[%clk 0:02:54]} 7. Be2 {[%clk 0:02:30]}  O-O {[%clk 0:02:53]} 8. O-O {[%clk 0:02:31]}  c5 {[%clk 0:02:53]} 9. d5 {[%clk 0:02:29]}  Na6 {[%clk 0:02:52]} 10. a3 {[%clk 0:02:28]}  Nc7 {[%clk 0:02:51]} 11. Nd2 {[%clk 0:02:27]}  Rb8 {[%clk 0:02:47]} 12. e4 {[%clk 0:02:27]}  Bd7 {[%clk 0:02:47]} 13. a4 {[%clk 0:02:27]}  a6 {[%clk 0:02:46]} 14. f4 {[%clk 0:02:17]}  e6 {[%clk 0:02:23]} 15. e5 {[%clk 0:01:50]}  Nfe8 {[%clk 0:02:19]} 16. Nf3 {[%clk 0:01:50]}  exd5 {[%clk 0:02:10]} 17. cxd5 {[%clk 0:01:44]}  b5 {[%clk 0:02:10]} 18. Qd1 {[%clk 0:01:29]}  b4 {[%clk 0:01:57]} 19. Ne4 {[%clk 0:01:29]}  Bf5 {[%clk 0:01:58]} 20. exd6 {[%clk 0:01:16]}  Bxe4 {[%clk 0:01:51]} 21. dxc7 {[%clk 0:01:15]}  Nxc7 {[%clk 0:01:50]} 22. d6 {[%clk 0:00:46]}  Nd5 {[%clk 0:01:47]} 23. Bxa6 {[%clk 0:00:42]}  Qxd6 {[%clk 0:01:44]} 24. Bc4 {[%clk 0:00:33]}  Rbd8 {[%clk 0:01:43]} 25. Qb3 {[%clk 0:00:24]}  Nb6 {[%clk 0:01:37]} 26. Ne5 {[%clk 0:00:06]}  Bxe5 {[%clk 0:01:31]} 27. fxe5 {[%clk 0:00:06]}  Qd4+ {[%clk 0:01:32]} 28. Be3 {[%clk 0:00:03]}  Qxc4 {[%clk 0:01:32]} 29. Qxc4 {[%clk 0:00:03]}  Nxc4 {[%clk 0:01:33]} 30. Bxc5 {[%clk 0:00:03]}  Rfe8 {[%clk 0:01:33]} 31. a5 {[%clk 0:00:02]}  Ra8 {[%clk 0:01:32]} 32. a6 {[%clk 0:00:02]}  Nxb2 {[%clk 0:01:32]} 0-1


[Site "https://www.chess.com"]

[Event "Titled Tuesday Blitz March 22 Early 2022"]
[White "Aravindh, Chithambaram VR."]
[Black "Ljukin, Sergei"]
[WhiteFideId "5072786"]
[BlackFideId "14102200"]
[WhiteElo "2561"]
[BlackElo "2312"]
[Result "1-0"]
[Round "09"]
[TimeControl "180+1"]
[Date "2022.03.22"]
[WhiteClock "0:02:31"]
[BlackClock "0:00:56"]

1. b3 {[%clk 0:02:54]}  e5 {[%clk 0:01:04]} 2. Bb2 {[%clk 0:02:55]}  Nc6 {[%clk 0:01:04]} 3. e3 {[%clk 0:02:48]}  Nf6 {[%clk 0:01:04]} 4. Bb5 {[%clk 0:02:48]}  Bd6 {[%clk 0:01:04]} 5. Na3 {[%clk 0:02:47]}  Na5 {[%clk 0:01:02]} 6. Nf3 {[%clk 0:02:46]}  Qe7 {[%clk 0:01:00]} 7. Nc4 {[%clk 0:02:45]}  Nxc4 {[%clk 0:00:59]} 8. Bxc4 {[%clk 0:02:46]}  c6 {[%clk 0:01:00]} 9. d4 {[%clk 0:02:37]}  e4 {[%clk 0:00:59]} 10. Ng5 {[%clk 0:02:35]}  h6 {[%clk 0:00:56]} 11. Nxf7 {[%clk 0:02:31]} 1-0


[Site "https://www.chess.com"]

[Event "Titled Tuesday Blitz March 22 Early 2022"]
[White "Ardila, Oscar Humberto"]
[Black "Tsyhanchuk, Stanislav"]
[WhiteFideId "4404742"]
[BlackFideId "13505130"]
[WhiteElo "1966"]
[BlackElo "2078"]
[Result "0-1"]
[Round "09"]
[TimeControl "180+1"]
[Date "2022.03.22"]
[WhiteClock "0:00:11"]
[BlackClock "0:00:08"]

1. d4 {[%clk 0:03:00]}  d5 {[%clk 0:02:59]} 2. c4 {[%clk 0:03:00]}  c6 {[%clk 0:02:59]} 3. Nf3 {[%clk 0:03:00]}  Nf6 {[%clk 0:02:57]} 4. Nc3 {[%clk 0:02:59]}  dxc4 {[%clk 0:02:57]} 5. a4 {[%clk 0:02:57]}  Bf5 {[%clk 0:02:56]} 6. e3 {[%clk 0:02:56]}  e6 {[%clk 0:02:56]} 7. Bxc4 {[%clk 0:02:56]}  Nbd7 {[%clk 0:02:56]} 8. O-O {[%clk 0:02:56]}  Bb4 {[%clk 0:02:56]} 9. Bd2 {[%clk 0:02:55]}  Bg6 {[%clk 0:02:55]} 10. Qb3 {[%clk 0:02:50]}  a5 {[%clk 0:02:54]} 11. Rac1 {[%clk 0:02:48]}  O-O {[%clk 0:02:53]} 12. Rfd1 {[%clk 0:02:47]}  Qe7 {[%clk 0:02:51]} 13. Be1 {[%clk 0:02:36]}  Bh5 {[%clk 0:02:49]} 14. Be2 {[%clk 0:02:35]}  Rac8 {[%clk 0:02:31]} 15. Na2 {[%clk 0:02:32]}  Bxe1 {[%clk 0:02:30]} 16. Rxe1 {[%clk 0:02:32]}  Rb8 {[%clk 0:02:23]} 17. Qc3 {[%clk 0:02:29]}  Nd5 {[%clk 0:02:14]} 18. Qb3 {[%clk 0:02:07]}  Qd6 {[%clk 0:01:48]} 19. Nd2 {[%clk 0:02:05]}  Bxe2 {[%clk 0:01:47]} 20. Rxe2 {[%clk 0:02:06]}  b5 {[%clk 0:01:47]} 21. Ne4 {[%clk 0:02:04]}  Qc7 {[%clk 0:01:29]} 22. Rec2 {[%clk 0:01:50]}  bxa4 {[%clk 0:01:27]} 23. Qxa4 {[%clk 0:01:50]}  Qb7 {[%clk 0:01:03]} 24. Nd6 {[%clk 0:01:29]}  Qb3 {[%clk 0:01:03]} 25. Qxc6 {[%clk 0:01:10]}  N7f6 {[%clk 0:00:29]} 26. Qc4 {[%clk 0:01:01]}  Qxc4 {[%clk 0:00:27]} 27. Nxc4 {[%clk 0:01:01]}  g6 {[%clk 0:00:23]} 28. f3 {[%clk 0:00:59]}  Rfc8 {[%clk 0:00:19]} 29. e4 {[%clk 0:00:59]}  Nf4 {[%clk 0:00:19]} 30. Rd1 {[%clk 0:00:29]}  Rc7 {[%clk 0:00:16]} 31. g3 {[%clk 0:00:24]}  Ne2+ {[%clk 0:00:12]} 32. Rxe2 {[%clk 0:00:24]}  Rxc4 {[%clk 0:00:12]} 33. Nc3 {[%clk 0:00:24]}  Rcb4 {[%clk 0:00:12]} 34. Rdd2 {[%clk 0:00:24]}  a4 {[%clk 0:00:12]} 35. Kf2 {[%clk 0:00:24]}  Rc4 {[%clk 0:00:11]} 36. Ke3 {[%clk 0:00:24]}  a3 {[%clk 0:00:11]} 37. Kd3 {[%clk 0:00:24]}  axb2 {[%clk 0:00:08]} 38. Kxc4 {[%clk 0:00:22]}  Rc8+ {[%clk 0:00:05]} 39. Kd3 {[%clk 0:00:22]}  Rxc3+ {[%clk 0:00:05]} 40. Kxc3 {[%clk 0:00:22]}  b1=Q {[%clk 0:00:06]} 41. Kc4 {[%clk 0:00:22]}  Qc1+ {[%clk 0:00:06]} 42. Kb4 {[%clk 0:00:22]}  Qb1+ {[%clk 0:00:06]} 43. Kc5 {[%clk 0:00:22]}  Qc1+ {[%clk 0:00:07]} 44. Kd6 {[%clk 0:00:22]}  Qa3+ {[%clk 0:00:07]} 45. Kc7 {[%clk 0:00:21]}  Kg7 {[%clk 0:00:08]} 46. d5 {[%clk 0:00:20]}  Qe7+ {[%clk 0:00:09]} 47. Kb6 {[%clk 0:00:20]}  exd5 {[%clk 0:00:10]} 48. exd5 {[%clk 0:00:19]}  Qd6+ {[%clk 0:00:10]} 49. Kb5 {[%clk 0:00:19]}  Nxd5 {[%clk 0:00:11]} 50. Kc4 {[%clk 0:00:16]}  Ne3+ {[%clk 0:00:10]} 51. Kc3 {[%clk 0:00:16]}  Qc5+ {[%clk 0:00:08]} 52. Kd3 {[%clk 0:00:16]}  Nf5 {[%clk 0:00:07]} 53. g4 {[%clk 0:00:14]}  Qd4+ {[%clk 0:00:06]} 54. Kc2 {[%clk 0:00:14]}  Ne3+ {[%clk 0:00:07]} 55. Kc1 {[%clk 0:00:14]}  Qc3+ {[%clk 0:00:07]} 56. Kb1 {[%clk 0:00:14]}  Nc4 {[%clk 0:00:07]} 57. Rc2 {[%clk 0:00:13]}  Na3+ {[%clk 0:00:06]} 58. Kc1 {[%clk 0:00:14]}  Nxc2 {[%clk 0:00:07]} 59. Rxc2 {[%clk 0:00:15]}  Qxf3 {[%clk 0:00:07]} 60. Kb2 {[%clk 0:00:15]}  Qf4 {[%clk 0:00:07]} 61. Kb3 {[%clk 0:00:11]}  Qxg4 {[%clk 0:00:07]} 62. Kc3 {[%clk 0:00:11]}  Qc8+ {[%clk 0:00:06]} 63. Kd3 {[%clk 0:00:11]}  Qxc2+ {[%clk 0:00:07]} 64. Kxc2 {[%clk 0:00:11]}  f5 {[%clk 0:00:08]} 0-1


[Site "https://www.chess.com"]

[Event "Titled Tuesday Blitz March 22 Early 2022"]
[White "Atakhan, Abtin"]
[Black "Timofeev, Artyom"]
[WhiteFideId "22502203"]
[BlackFideId "4140419"]
[WhiteElo "2119"]
[BlackElo "2594"]
[Result "0-1"]
[Round "09"]
[TimeControl "180+1"]
[Date "2022.03.22"]
[WhiteClock "0:01:42"]
[BlackClock "0:02:07"]

1. c4 {[%clk 0:03:00]}  e5 {[%clk 0:02:58]} 2. g3 {[%clk 0:03:00]}  f5 {[%clk 0:02:54]} 3. Bg2 {[%clk 0:03:00]}  Nf6 {[%clk 0:02:54]} 4. Nf3 {[%clk 0:02:54]}  Nc6 {[%clk 0:02:53]} 5. d4 {[%clk 0:02:52]}  e4 {[%clk 0:02:52]} 6. Nh4 {[%clk 0:02:52]}  d5 {[%clk 0:02:50]} 7. cxd5 {[%clk 0:02:52]}  Nxd5 {[%clk 0:02:50]} 8. f3 {[%clk 0:02:07]}  Bb4+ {[%clk 0:02:49]} 9. Kf1 {[%clk 0:02:03]}  O-O {[%clk 0:02:47]} 10. e3 {[%clk 0:01:56]}  Be7 {[%clk 0:02:43]} 11. Ke2 {[%clk 0:01:51]}  Bxh4 {[%clk 0:02:42]} 12. gxh4 {[%clk 0:01:51]}  Qxh4 {[%clk 0:02:42]} 13. Qe1 {[%clk 0:01:51]}  exf3+ {[%clk 0:02:31]} 14. Bxf3 {[%clk 0:01:51]}  Nxd4+ {[%clk 0:02:31]} 15. exd4 {[%clk 0:01:46]}  Re8+ {[%clk 0:02:30]} 16. Kd2 {[%clk 0:01:42]}  Qxd4+ {[%clk 0:02:30]} 17. Kc2 {[%clk 0:01:41]}  Rxe1 {[%clk 0:02:25]} 18. Rxe1 {[%clk 0:01:42]}  Qf2+ {[%clk 0:02:07]} 0-1


[Site "https://www.chess.com"]